[Event "FIDE WCCC Open-08 2024"]
[Site "Montesilvano"]
[Date "2024.11.18"]
[Round "2.1"]
[White "Demchenko, Timofei"]
[Black "Bisetto, Alessandro Federico"]
[Result "1-0"]
[ECO "C45"]
[WhiteElo "1969"]
[BlackElo "1671"]
[PlyCount "51"]
[EventDate "2024.11.18"]
[EventType "swiss"]
[EventCountry "ITA"]
[TimeControl "5400+30"]

1. e4 {[%emt 0:00:02]} e5 {[%emt 0:00:00]} 2. Nf3 {[%emt 0:00:06]} Nc6 {[%emt 0:00:06]} 3. d4 {[%emt 0:00:04]} exd4 {[%emt 0:00:15]} 4. Nxd4 {[%emt 0:00:08]} Bc5 {[%emt 0:00:02]} 5. Be3 {[%emt 0:00:14]} Qf6 {[%emt 0:00:26]} 6. c3 {[%emt 0:00:07]} Qg6 {[%emt 0:00:12]} 7. f3 {[%emt 0:00:46]} Nxd4 {[%emt 0:12:21]} 8. Bxd4 {[%emt 0:02:08]} Bxd4 {[%emt 0:01:16]} 9. Qxd4 {[%emt 0:01:17]} Ne7 {[%emt 0:03:25]} 10. Nd2 {[%emt 0:04:03]} Nc6 {[%emt 0:00:33]} 11. Qe3 {[%emt 0:00:17]} d6 {[%emt 0:02:52]} 12. O-O-O {[%emt 0:02:16]} Bd7 {[%emt 0:05:41]} 13. Nc4 {[%emt 0:03:56]} O-O-O {[%emt 0:06:10]} 14. Bd3 {[%emt 0:03:47]} Kb8 {[%emt 0:06:09]} 15. e5 {[%emt 0:11:12]} Qe6 {[%emt 0:01:07]} 16. f4 {[%emt 0:14:18]} dxe5 {[%emt 0:07:02]} 17. fxe5 {[%emt 0:00:23]} Rhe8 {[%emt 0:00:18]} 18. Rhe1 {[%emt 0:04:52]} Ne7 {[%emt 0:05:30]} 19. Qc5 {[%emt 0:08:12]} Qc6 {[%emt 0:02:28]} 20. Qb4 {[%emt 0:02:24]} Nd5 {[%emt 0:00:27]} 21. Qb3 {[%emt 0:00:18]} Qa4 {[%emt 0:02:04]} 22. Bxh7 {[%emt 0:06:05]} Qxb3 {[%emt 0:05:49]} 23. axb3 {[%emt 0:00:03]} Bg4 {[%emt 0:00:13]} 24. Rd4 {[%emt 0:00:19]} Be6 {[%emt 0:02:13]} 25. Be4 {[%emt 0:04:02]} c5 {[%emt 0:01:33]} 26. Rd2 {[%emt 0:00:33]} 1-0

[Event "FIDE WCCC Open-08 2024"]
[Site "Montesilvano"]
[Date "2024.11.18"]
[Round "2.2"]
[White "Pham, Han Nam"]
[Black "Zhu, Daniel"]
[Result "0-1"]
[ECO "B53"]
[WhiteElo "1912"]
[BlackElo "2050"]
[PlyCount "116"]
[EventDate "2024.11.18"]
[EventType "swiss"]
[EventCountry "ITA"]
[TimeControl "5400+30"]

1. e4 {[%emt 0:00:10]} c5 {[%emt 0:00:18]} 2. Nf3 {[%emt 0:00:23]} d6 {[%emt 0:00:10]} 3. d4 {[%emt 0:00:18]} Nf6 {[%emt 0:00:11]} 4. Nc3 {[%emt 0:00:47]} cxd4 {[%emt 0:00:12]} 5. Qxd4 {[%emt 0:00:45]} Nc6 {[%emt 0:00:40]} 6. Bb5 {[%emt 0:00:38]} Bd7 {[%emt 0:00:11]} 7. Bxc6 {[%emt 0:00:28]} Bxc6 {[%emt 0:00:10]} 8. Bg5 {[%emt 0:00:11]} e6 {[%emt 0:00:57]} 9. O-O-O {[%emt 0:00:18]} Be7 {[%emt 1:32:11]} 10. Rhe1 {[%emt 0:00:16]} O-O {[%emt 0:00:00]} 11. e5 {[%emt 0:01:56]} dxe5 {[%emt 0:00:00]} 12. Qh4 {[%emt 0:00:09]} Qc7 {[%emt 0:00:00]} 13. Nxe5 {[%emt 0:00:41]} Rfd8 {[%emt 0:00:00]} 14. Ng4 {[%emt 0:04:08]} Nxg4 {[%emt 0:00:00]} 15. Bxe7 {[%emt 0:00:31]} Rxd1+ {[%emt 0:00:00]} 16. Rxd1 {[%emt 0:00:08]} Nh6 {[%emt 0:03:30]} 17. Bd6 {[%emt 0:05:58]} Nf5 {[%emt 0:00:00]} 18. Qxh7+ {[%emt 0:00:48]} Kxh7 {[%emt 0:00:00]} 19. Bxc7 {[%emt 0:00:05]} Rc8 {[%emt 0:00:00]} 20. Bg3 {[%emt 0:02:04]} Bxg2 {[%emt 0:00:00]} 21. Rd7 {[%emt 0:01:08]} Kg6 {[%emt 0:00:00]} 22. Ne2 {[%emt 0:01:13]} Bc6 {[%emt 0:00:00]} 23. Nf4+ {[%emt 0:00:55]} Kf6 {[%emt 0:00:00]} 24. Rd2 {[%emt 0:00:50]} g6 {[%emt 0:00:00]} 25. Nd3 {[%emt 0:00:48]} Kg7 {[%emt 0:00:00]} 26. Nb4 {[%emt 0:01:01]} Be4 {[%emt 0:00:00]} 27. c3 {[%emt 0:03:10]} Rc4 {[%emt 0:00:00]} 28. Nc2 {[%emt 0:01:36]} Bd5 {[%emt 0:00:00]} 29. b3 {[%emt 0:00:56]} Rc5 {[%emt 0:00:00]} 30. c4 {[%emt 0:01:34]} Bc6 {[%emt 0:00:00]} 31. Na3 {[%emt 0:00:58]} Nxg3 {[%emt 0:00:00]} 32. hxg3 {[%emt 0:00:30]} Rh5 {[%emt 0:00:00]} 33. Kb2 {[%emt 0:00:15]} Rf5 {[%emt 0:00:00]} 34. Nc2 {[%emt 0:00:37]} Re5 {[%emt 0:00:00]} 35. Kc3 {[%emt 0:00:42]} f5 {[%emt 0:00:00]} 36. Nd4 {[%emt 0:01:04]} Be8 {[%emt 0:00:00]} 37. b4 {[%emt 0:01:18]} Re1 {[%emt 0:00:00]} 38. c5 {[%emt 0:01:58]} Kf6 {[%emt 0:00:00]} 39. Nc2 {[%emt 0:00:51]} Rb1 {[%emt 0:00:00]} 40. Ne3 {[%emt 0:01:12]} Bb5 {[%emt 0:00:00]} 41. Rd6 {[%emt 0:01:13]} Bc6 {[%emt 0:00:00]} 42. Rd2 {[%emt 0:01:06]} g5 {[%emt 0:00:00]} 43. Nc4 {[%emt 0:02:14]} Rc1+ {[%emt 0:00:00]} 44. Kd4 {[%emt 0:01:07]} Bd5 {[%emt 0:00:00]} 45. Ne3 {[%emt 0:01:01]} Bc6 {[%emt 0:00:00]} 46. Rb2 {[%emt 0:01:39]} e5+ {[%emt 0:00:00]} 47. Kd3 {[%emt 0:00:06]} f4 {[%emt 0:00:00]} 48. gxf4 {[%emt 0:02:01]} gxf4 {[%emt 0:00:00]} 49. Nc2 {[%emt 0:00:56]} Kf5 {[%emt 0:00:00]} 50. Na3 {[%emt 0:01:33]} a6 {[%emt 0:00:00]} 51. Kd2 {[%emt 0:01:16]} Rh1 {[%emt 0:00:00]} 52. Nc4 {[%emt 0:00:48]} e4 {[%emt 0:00:00]} 53. Kc3 {[%emt 0:01:51]} Rh3+ {[%emt 0:00:00]} 54. Kc2 {[%emt 0:00:46]} Ba4+ {[%emt 0:00:00]} 55. Kd2 {[%emt 0:02:06]} Rd3+ {[%emt 0:00:00]} 56. Ke1 {[%emt 0:00:25]} Rd1+ {[%emt 0:00:00]} 57. Ke2 {[%emt 0:00:34]} f3+ {[%emt 0:00:00]} 58. Ke3 {[%emt 0:00:42]} Rd3# {[%emt 0:21:00] Kf4+} 0-1

[Event "FIDE WCCC Open-08 2024"]
[Site "Montesilvano"]
[Date "2024.11.18"]
[Round "2.3"]
[White "Adilbek, Adinur"]
[Black "Xu, Zhihan (Samuel)"]
[Result "1-0"]
[ECO "D11"]
[WhiteElo "1651"]
[BlackElo "1881"]
[PlyCount "119"]
[EventDate "2024.11.18"]
[EventType "swiss"]
[EventCountry "ITA"]
[TimeControl "5400+30"]

1. d4 {[%emt 0:00:02]} d5 {[%emt 0:00:01]} 2. Nf3 {[%emt 0:00:13]} Nf6 {[%emt 0:00:09]} 3. g3 {[%emt 0:00:06]} Bf5 {[%emt 0:00:10]} 4. Bg2 {[%emt 0:00:08]} h6 {[%emt 0:00:10]} 5. O-O {[%emt 0:00:10]} e6 {[%emt 0:00:17]} 6. c4 {[%emt 0:00:12]} c6 {[%emt 0:00:03]} 7. Qb3 {[%emt 0:00:33]} Qb6 {[%emt 0:00:26]} 8. c5 {[%emt 0:00:08]} Qxb3 {[%emt 0:04:50]} 9. axb3 {[%emt 1:33:28]} Nbd7 {[%emt 0:09:04]} 10. Nc3 {[%emt 0:00:00]} Be7 {[%emt 0:09:41]} 11. b4 {[%emt 0:00:00]} Ne4 {[%emt 0:10:29]} 12. Nd2 {[%emt 0:00:00]} Nxd2 {[%emt 0:09:20]} 13. Bxd2 {[%emt 0:00:00]} Bf6 {[%emt 0:01:50]} 14. e3 {[%emt 0:00:00]} O-O {[%emt 0:03:21]} 15. f4 {[%emt 0:00:00]} b6 {[%emt 0:07:39]} 16. Na4 {[%emt 0:00:00]} g5 {[%emt 0:22:00]} 17. Kh1 {[%emt 0:00:00]} Kh7 {[%emt 0:08:51]} 18. Bf3 {[%emt 0:00:00]} Rg8 {[%emt 0:05:59]} 19. Be1 {[%emt 0:00:00]} gxf4 {[%emt 0:02:01]} 20. gxf4 {[%emt 0:00:00]} Bh3 {[%emt 0:01:59]} 21. Rg1 {[%emt 0:00:00]} Rxg1+ {[%emt 0:01:24]} 22. Kxg1 {[%emt 0:00:00]} Rg8+ {[%emt 0:00:51]} 23. Bg3 {[%emt 0:00:00]} Bf5 {[%emt 0:00:40]} 24. Bh5 {[%emt 0:00:00]} Bg6 {[%emt 0:00:40]} 25. Bxg6+ {[%emt 0:00:00]} fxg6 {[%emt 0:00:14]} 26. Kf2 {[%emt 0:00:00]} Rf8 {[%emt 0:00:31]} 27. Rc1 {[%emt 0:00:00]} b5 {[%emt 0:00:40]} 28. Nc3 {[%emt 0:00:00]} e5 {[%emt 0:00:35]} 29. fxe5 {[%emt 0:00:00]} Bxe5+ {[%emt 0:00:21]} 30. Ke2 {[%emt 0:00:00]} Bxg3 {[%emt 0:00:34]} 31. hxg3 {[%emt 0:00:00]} Nf6 {[%emt 0:00:20]} 32. Ra1 {[%emt 0:00:00]} Rf7 {[%emt 0:00:20]} 33. Ra6 {[%emt 0:00:00]} Rc7 {[%emt 0:00:51]} 34. Nxb5 {[%emt 0:00:00]} Rf7 {[%emt 0:00:36]} 35. Rxa7 {[%emt 0:00:00]} Kg7 {[%emt 0:00:28]} 36. Rxf7+ {[%emt 0:00:00]} Kxf7 {[%emt 0:00:01]} 37. Na7 {[%emt 0:00:00]} Ne4 {[%emt 0:00:59]} 38. Kf3 {[%emt 0:00:00]} Nd2+ {[%emt 0:00:31]} 39. Kg4 {[%emt 0:00:00]} Nc4 {[%emt 0:00:32]} 40. Nxc6 {[%emt 0:00:00]} Nxe3+ {[%emt 0:01:02]} 41. Kf4 {[%emt 0:00:00]} Nc4 {[%emt 0:00:00]} 42. b5 {[%emt 0:00:00]} Ke6 {[%emt 0:00:27]} 43. b6 {[%emt 0:00:00]} g5+ {[%emt 0:00:17]} 44. Kg4 {[%emt 0:00:00]} Ne3+ {[%emt 0:00:43]} 45. Kf3 {[%emt 0:00:00]} Nf5 {[%emt 0:00:31]} 46. b7 {[%emt 0:00:00]} g4+ {[%emt 0:00:28]} 47. Kf2 {[%emt 0:00:00]} h5 {[%emt 0:00:32]} 48. b8=Q {[%emt 0:00:00]} h4 {[%emt 0:00:28]} 49. Qe5+ {[%emt 0:00:00]} Kd7 {[%emt 0:00:13]} 50. Qxf5+ {[%emt 0:00:00]} Kxc6 {[%emt 0:00:08]} 51. Qe6+ {[%emt 0:00:00]} Kb5 {[%emt 0:00:14]} 52. b3 {[%emt 0:00:00]} hxg3+ {[%emt 0:00:35]} 53. Kxg3 {[%emt 0:00:00]} Kb4 {[%emt 0:00:05]} 54. Kxg4 {[%emt 0:00:00]} Kc3 {[%emt 0:01:03]} 55. c6 {[%emt 0:00:00]} Kb4 {[%emt 0:00:05]} 56. c7 {[%emt 0:00:00]} Ka5 {[%emt 0:00:37]} 57. c8=Q {[%emt 0:00:00]} Kb4 {[%emt 0:00:03]} 58. Qc5+ {[%emt 0:00:00]} Kxb3 {[%emt 0:00:05]} 59. Qeb6+ {[%emt 0:00:00]} Ka2 {[%emt 0:00:18]} 60. Qca5# {[%emt 0:00:00]} 1-0

[Event "FIDE WCCC Open-08 2024"]
[Site "Montesilvano"]
[Date "2024.11.18"]
[Round "2.4"]
[White "Li, Aiden Linyuan"]
[Black "Kortmann, Pedro Reck"]
[Result "1-0"]
[ECO "B06"]
[WhiteElo "1877"]
[BlackElo "1630"]
[PlyCount "57"]
[EventDate "2024.11.18"]
[EventType "swiss"]
[EventCountry "ITA"]
[TimeControl "5400+30"]

1. d4 {[%emt 0:00:03]} Nf6 {[%emt 0:00:16]} 2. g3 {[%emt 0:00:05]} g6 {[%emt 0:01:02]} 3. Bg2 {[%emt 0:00:06]} Bg7 {[%emt 0:00:57]} 4. e4 {[%emt 0:00:07]} d6 {[%emt 0:01:16]} 5. Ne2 {[%emt 0:00:14]} e6 {[%emt 0:00:54]} 6. O-O {[%emt 0:00:46]} O-O {[%emt 0:00:41]} 7. h3 {[%emt 0:00:13]} h5 {[%emt 0:00:40]} 8. Be3 {[%emt 0:00:32]} Nc6 {[%emt 0:01:59]} 9. Nbc3 {[%emt 0:00:09]} Re8 {[%emt 0:02:14]} 10. f4 {[%emt 0:00:27]} Bh6 {[%emt 0:02:42]} 11. Qd2 {[%emt 0:01:02]} e5 {[%emt 0:00:45]} 12. fxe5 {[%emt 0:01:42]} dxe5 {[%emt 0:00:52]} 13. Bxh6 {[%emt 0:00:11]} exd4 {[%emt 0:00:42]} 14. Nd5 {[%emt 0:00:38]} Nxd5 {[%emt 0:00:25]} 15. exd5 {[%emt 0:00:07]} Ne5 {[%emt 0:01:55]} 16. Bg5 {[%emt 0:00:54]} Qd6 {[%emt 0:00:23]} 17. Bf6 {[%emt 0:00:11]} Nd7 {[%emt 0:05:19]} 18. Bxd4 {[%emt 0:00:23]} b6 {[%emt 0:01:32]} 19. Qh6 {[%emt 0:01:13]} Ne5 {[%emt 0:00:35]} 20. Qf4 {[%emt 0:01:37]} Bf5 {[%emt 0:00:40]} 21. Nc3 {[%emt 0:01:14]} a6 {[%emt 0:00:39]} 22. Bxe5 {[%emt 0:01:43]} Rxe5 {[%emt 0:00:24]} 23. g4 {[%emt 0:00:12]} Qc5+ {[%emt 0:00:23]} 24. Rf2 {[%emt 0:00:11]} Rae8 {[%emt 0:03:35]} 25. gxf5 {[%emt 0:01:23]} Rxf5 {[%emt 0:00:14]} 26. Qd2 {[%emt 0:00:20]} Re3 {[%emt 0:02:19]} 27. Ne4 {[%emt 0:01:23]} Rxe4 {[%emt 0:03:43]} 28. Bxe4 {[%emt 0:01:32]} Rf6 {[%emt 0:00:43]} 29. Raf1 {[%emt 0:00:50]} 1-0

[Event "FIDE WCCC Open-08 2024"]
[Site "Montesilvano"]
[Date "2024.11.18"]
[Round "2.5"]
[White "Huzela, Lukyan"]
[Black "Badescu, Matei-Andrei"]
[Result "0-1"]
[ECO "B50"]
[WhiteElo "1651"]
[BlackElo "1829"]
[PlyCount "70"]
[EventDate "2024.11.18"]
[EventType "swiss"]
[EventCountry "ITA"]
[TimeControl "5400+30"]

1. e4 {[%emt 0:00:01]} c5 {[%emt 0:00:05]} 2. Nf3 {[%emt 0:00:08]} d6 {[%emt 0:00:10]} 3. Bc4 {[%emt 0:00:12]} e6 {[%emt 0:00:51]} 4. O-O {[%emt 0:00:25]} Nf6 {[%emt 0:00:20]} 5. Re1 {[%emt 0:00:32]} Be7 {[%emt 0:00:29]} 6. c3 {[%emt 0:01:36]} O-O {[%emt 0:00:33]} 7. d4 {[%emt 0:04:03]} cxd4 {[%emt 0:00:13]} 8. cxd4 {[%emt 0:00:21]} d5 {[%emt 0:01:48]} 9. exd5 {[%emt 0:02:17]} exd5 {[%emt 1:30:31]} 10. Be2 {[%emt 0:04:31]} Nc6 {[%emt 0:00:00]} 11. Nc3 {[%emt 0:01:01]} Bf5 {[%emt 0:00:00]} 12. Bb5 {[%emt 0:08:53]} Nb4 {[%emt 0:00:00]} 13. Re5 {[%emt 0:04:11]} Bd7 {[%emt 0:00:00]} 14. a3 {[%emt 0:05:08]} Nc6 {[%emt 0:00:00]} 15. Re1 {[%emt 0:01:09]} a6 {[%emt 0:00:00]} 16. Bxc6 {[%emt 0:00:56]} Bxc6 {[%emt 0:00:00]} 17. Ne5 {[%emt 0:00:50]} Rc8 {[%emt 0:00:00]} 18. Bg5 {[%emt 0:01:18]} h6 {[%emt 0:00:00]} 19. Bh4 {[%emt 0:01:31]} Re8 {[%emt 0:00:00]} 20. Qe2 {[%emt 0:02:49]} g5 {[%emt 0:00:00]} 21. Bg3 {[%emt 0:02:02]} Ne4 {[%emt 0:00:00]} 22. Nxe4 {[%emt 0:00:49]} dxe4 {[%emt 0:00:00]} 23. Qh5 {[%emt 0:00:07]} Qd5 {[%emt 0:00:00]} 24. Qxh6 {[%emt 0:10:45]} e3 {[%emt 0:00:00]} 25. Nf3 {[%emt 0:00:53]} g4 {[%emt 0:00:00]} 26. Be5 {[%emt 0:00:01]} f6 {[%emt 0:00:00]} 27. Qg6+ {[%emt 0:00:01]} Kf8 {[%emt 0:00:00]} 28. Bxf6 {[%emt 0:00:02]} Bxf6 {[%emt 0:00:00]} 29. Qxf6+ {[%emt 0:00:02]} Kg8 {[%emt 0:00:00]} 30. Qg6+ {[%emt 0:01:04]} Kh8 {[%emt 0:00:00]} 31. Qxg4 {[%emt 0:00:40]} Rc7 {[%emt 0:00:00]} 32. Ne5 {[%emt 0:03:50]} exf2+ {[%emt 0:00:00]} 33. Kxf2 {[%emt 0:00:11]} Rg7 {[%emt 0:00:00]} 34. Qh4+ {[%emt 0:05:04]} Kg8 {[%emt 0:00:00]} 35. Nf3 {[%emt 0:00:13]} Rxg2+ {[%emt 0:00:00]} 0-1

[Event "FIDE WCCC Open-08 2024"]
[Site "Montesilvano"]
[Date "2024.11.18"]
[Round "2.6"]
[White "Mani, Sarbartho"]
[Black "Cardas, Serghei"]
[Result "0-1"]
[ECO "C19"]
[WhiteElo "1824"]
[BlackElo "1627"]
[PlyCount "116"]
[EventDate "2024.11.18"]
[EventType "swiss"]
[EventCountry "ITA"]
[TimeControl "5400+30"]

1. e4 {[%emt 0:00:03]} e6 {[%emt 0:00:06]} 2. d4 {[%emt 0:00:10]} d5 {[%emt 0:00:03]} 3. Nc3 {[%emt 0:00:08]} Bb4 {[%emt 0:00:46]} 4. e5 {[%emt 0:00:12]} Ne7 {[%emt 0:01:01]} 5. Nf3 {[%emt 0:00:23]} c5 {[%emt 0:00:32]} 6. a3 {[%emt 0:00:50]} Bxc3+ {[%emt 0:00:26]} 7. bxc3 {[%emt 0:00:17]} Qa5 {[%emt 0:00:45]} 8. Bd2 {[%emt 0:00:16]} c4 {[%emt 0:00:20]} 9. Be2 {[%emt 0:00:20]} Bd7 {[%emt 0:00:53]} 10. O-O {[%emt 0:00:20]} Nbc6 {[%emt 0:00:31]} 11. Nh4 {[%emt 0:09:43]} O-O-O {[%emt 0:01:41]} 12. f4 {[%emt 0:01:00]} g6 {[%emt 0:01:19]} 13. Nf3 {[%emt 0:01:58]} h6 {[%emt 0:01:04]} 14. g4 {[%emt 0:04:30]} Rdg8 {[%emt 0:03:32]} 15. Kg2 {[%emt 0:00:57]} a6 {[%emt 0:01:53]} 16. Qc1 {[%emt 0:05:48]} Na7 {[%emt 0:01:28]} 17. a4 {[%emt 0:00:43]} Nec6 {[%emt 0:00:56]} 18. Qa3 {[%emt 0:00:42]} Rh7 {[%emt 0:02:53]} 19. Rfb1 {[%emt 0:00:56]} Qc7 {[%emt 0:00:47]} 20. Qc5 {[%emt 0:01:28]} Kb8 {[%emt 0:01:09]} 21. Rb2 {[%emt 0:00:35]} Nd8 {[%emt 0:01:46]} 22. Qa3 {[%emt 0:01:33]} Ndc6 {[%emt 0:00:33]} 23. Rab1 {[%emt 0:00:18]} Bc8 {[%emt 0:00:30]} 24. Rb6 {[%emt 0:05:57]} Ka8 {[%emt 0:00:48]} 25. Qc5 {[%emt 0:00:22]} Qe7 {[%emt 0:00:43]} 26. Qxe7 {[%emt 0:00:41]} Nxe7 {[%emt 0:00:11]} 27. Bc1 {[%emt 0:00:31]} Nec6 {[%emt 0:01:04]} 28. Ba3 {[%emt 0:00:06]} Rhh8 {[%emt 0:02:48]} 29. Bd6 {[%emt 1:04:13]} Rd8 {[%emt 0:00:33]} 30. h4 {[%emt 0:00:00]} Rhg8 {[%emt 0:00:45]} 31. R1b2 {[%emt 0:00:00]} f5 {[%emt 0:01:56]} 32. g5 {[%emt 0:00:00]} h5 {[%emt 0:00:41]} 33. Kf2 {[%emt 0:00:00]} Rg7 {[%emt 0:01:17]} 34. Nd2 {[%emt 0:00:00]} Re8 {[%emt 0:03:44]} 35. Ke3 {[%emt 0:00:00]} Rd8 {[%emt 0:01:19]} 36. Nb1 {[%emt 0:00:00]} Re8 {[%emt 0:01:08]} 37. Na3 {[%emt 0:00:00]} Rd8 {[%emt 0:00:49]} 38. Bc5 {[%emt 0:00:00]} Na5 {[%emt 0:02:48]} 39. Nb5 {[%emt 0:00:00]} axb5 {[%emt 0:00:42]} 40. axb5 {[%emt 0:00:00]} Bd7 {[%emt 0:00:39]} 41. Ra2 {[%emt 0:00:00]} Nc8 {[%emt 0:01:58]} 42. Rxa5+ {[%emt 0:00:00]} Kb8 {[%emt 0:00:11]} 43. Bd6+ {[%emt 0:00:00]} Nxd6 {[%emt 0:00:07]} 44. Rxd6 {[%emt 0:00:00]} Rgg8 {[%emt 0:00:26]} 45. Kd2 {[%emt 0:00:00]} Bc8 {[%emt 0:00:25]} 46. b6 {[%emt 0:00:00]} Rxd6 {[%emt 0:00:27]} 47. exd6 {[%emt 0:00:00]} Rd8 {[%emt 0:00:07]} 48. Rc5 {[%emt 0:00:00]} Rxd6 {[%emt 0:00:11]} 49. Ke3 {[%emt 0:00:00]} Rxb6 {[%emt 0:00:13]} 50. Bxh5 {[%emt 0:00:00]} gxh5 {[%emt 0:00:32]} 51. Rb5 {[%emt 0:00:00]} Rd6 {[%emt 0:00:27]} 52. Rb1 {[%emt 0:00:00]} Rd8 {[%emt 0:00:12]} 53. Rg1 {[%emt 0:00:00]} Rg8 {[%emt 0:00:16]} 54. g6 {[%emt 0:00:00]} Kc7 {[%emt 0:00:14]} 55. Rg5 {[%emt 0:00:00]} Kd6 {[%emt 0:00:25]} 56. Rxh5 {[%emt 0:00:00]} Rxg6 {[%emt 0:00:07]} 57. Rg5 {[%emt 0:00:00]} Rh6 {[%emt 0:03:37]} 58. h5 {[%emt 0:00:00]} Bd7 {[%emt 1:02:46]} 0-1

[Event "FIDE WCCC Open-08 2024"]
[Site "Montesilvano"]
[Date "2024.11.18"]
[Round "2.7"]
[White "Cherem, Yoseph"]
[Black "Le, Khai"]
[Result "1-0"]
[ECO "E21"]
[WhiteElo "1634"]
[BlackElo "1808"]
[PlyCount "71"]
[EventDate "2024.11.18"]
[EventType "swiss"]
[EventCountry "ITA"]
[TimeControl "5400+30"]

1. d4 Nf6 2. c4 e6 3. Nc3 Bb4 4. Bg5 b6 5. e4 h6 6. Bxf6 Qxf6 7. Nf3 Bb7 8. Bd3 d6 9. Qa4+ Nc6 10. d5 Bxc3+ 11. bxc3 Qxc3+ 12. Ke2 Qb4 13. Bc2 b5 14. cxb5 Qxa4 15. Bxa4 Ne7 16. b6+ Kd8 17. bxc7+ Kxc7 18. Rhc1+ Kd8 19. dxe6 fxe6 20. Nd4 Bc8 21. Rab1 a5 22. Rb6 Ng6 23. Rxd6+ Ke7 24. Nf5+ Kf7 25. Rc7+ Kf6 26. g3 Ne5 27. f4 Ba6+ 28. Rxa6 Rxa6 29. fxe5+ Kxe5 30. Nxg7 Rb8 31. Ke3 Rb2 32. Bb3 Rxh2 33. Ne8 Rd6 34. Rc5+ Rd5 35. exd5 exd5 36. Rxd5+ {[%emt 0:18:00]} 1-0

[Event "FIDE WCCC Open-08 2024"]
[Site "Montesilvano"]
[Date "2024.11.18"]
[Round "2.8"]
[White "Ayaan Phutane"]
[Black "Nurshin, Nurali"]
[Result "0-1"]
[ECO "E34"]
[WhiteElo "1796"]
[BlackElo "1612"]
[PlyCount "88"]
[EventDate "2024.11.18"]
[EventType "swiss"]
[EventCountry "ITA"]
[TimeControl "5400+30"]

1. d4 {[%emt 0:01:08]} Nf6 {[%emt 0:00:20]} 2. c4 {[%emt 0:00:10]} e6 {[%emt 0:00:14]} 3. Nc3 {[%emt 0:00:12]} Bb4 {[%emt 0:00:14]} 4. Qc2 {[%emt 0:00:19]} d5 {[%emt 0:00:45]} 5. cxd5 {[%emt 0:00:50]} Qxd5 {[%emt 0:00:57]} 6. e3 {[%emt 0:02:55]} c5 {[%emt 0:02:00]} 7. a3 {[%emt 0:01:52]} cxd4 {[%emt 0:02:14]} 8. axb4 {[%emt 0:02:23]} dxc3 {[%emt 0:00:27]} 9. bxc3 {[%emt 0:01:15]} O-O {[%emt 0:02:42]} 10. Nf3 {[%emt 0:01:09]} Nc6 {[%emt 0:01:14]} 11. Be2 {[%emt 0:04:36]} e5 {[%emt 0:03:12]} 12. O-O {[%emt 0:01:39]} e4 {[%emt 0:00:08]} 13. Nd4 {[%emt 0:03:14]} Nxd4 {[%emt 1:22:33]} 14. exd4 {[%emt 0:00:27]} b5 {[%emt 0:00:00]} 15. Ra5 {[%emt 0:03:01]} Bd7 {[%emt 0:00:00]} 16. Be3 {[%emt 0:14:44]} Rfc8 {[%emt 0:00:00]} 17. Rfa1 {[%emt 0:02:52]} Qb7 {[%emt 0:00:00]} 18. Qb3 {[%emt 0:04:14]} a6 {[%emt 0:00:00]} 19. Qa3 {[%emt 0:02:29]} Nd5 {[%emt 0:00:00]} 20. Bd2 {[%emt 0:00:54]} Nc7 {[%emt 0:00:00]} 21. h4 {[%emt 0:07:59]} Bc6 {[%emt 0:00:00]} 22. Be3 {[%emt 0:01:45]} f5 {[%emt 0:00:00]} 23. Qa2+ {[%emt 0:06:00]} Kh8 {[%emt 0:00:00]} 24. h5 {[%emt 0:05:26]} Nd5 {[%emt 0:00:00]} 25. Bd2 {[%emt 0:01:29]} f4 {[%emt 0:00:00]} 26. Bg4 {[%emt 0:16:42]} Bd7 {[%emt 0:00:00]} 27. Bxd7 {[%emt 0:04:07]} Qxd7 {[%emt 0:00:00]} 28. Rxa6 {[%emt 0:02:32]} Rxa6 {[%emt 0:00:00]} 29. Qxa6 {[%emt 0:00:11]} f3 {[%emt 0:00:00]} 30. h6 {[%emt 0:05:42]} Qg4 {[%emt 0:00:00]} 31. hxg7+ {[%emt 0:01:00]} Kg8 {[%emt 0:00:00]} 32. Qxc8+ {[%emt 0:00:17]} Qxc8 {[%emt 0:00:00]} 33. Bh6 {[%emt 0:00:39]} Qc6 {[%emt 0:00:00]} 34. Bd2 {[%emt 0:01:42]} Kxg7 {[%emt 0:00:00]} 35. Ra7+ {[%emt 0:00:15]} Kg8 {[%emt 0:00:00]} 36. g3 {[%emt 0:01:32]} Nxc3 {[%emt 0:00:00]} 37. d5 {[%emt 0:00:47]} Ne2+ {[%emt 0:00:00]} 38. Kf1 {[%emt 0:00:26]} Qxd5 {[%emt 0:00:00]} 39. Be1 {[%emt 0:00:35]} Qh5 {[%emt 0:00:00]} 40. Ra8+ {[%emt 0:00:14]} Kf7 {[%emt 0:00:00]} 41. Ra7+ {[%emt 0:00:04]} Ke6 {[%emt 0:00:00]} 42. Ra6+ {[%emt 0:01:43]} Kd5 {[%emt 0:00:00]} 43. Rh6 {[%emt 0:00:00]} Qxh6 {[%emt 0:00:00]} 44. Bd2 {[%emt 0:00:00]} Qh1# {[%emt 0:00:00]} 0-1

[Event "FIDE WCCC Open-08 2024"]
[Site "Montesilvano"]
[Date "2024.11.18"]
[Round "2.9"]
[White "Nguyen Phuc Cao Danh"]
[Black "Sattwik Swain"]
[Result "0-1"]
[ECO "C50"]
[WhiteElo "1627"]
[BlackElo "1787"]
[PlyCount "62"]
[EventDate "2024.11.18"]
[EventType "swiss"]
[EventCountry "ITA"]
[TimeControl "5400+30"]

1. e4 {[%emt 0:00:02]} e5 {[%emt 0:00:10]} 2. Nf3 {[%emt 0:00:05]} Nc6 {[%emt 0:00:08]} 3. Bc4 {[%emt 0:00:17]} Bc5 {[%emt 0:00:09]} 4. Nc3 {[%emt 0:00:12]} Nf6 {[%emt 0:00:12]} 5. d3 {[%emt 0:00:09]} d6 {[%emt 0:00:30]} 6. h3 {[%emt 0:01:27]} h6 {[%emt 0:00:24]} 7. O-O {[%emt 0:00:20]} O-O {[%emt 0:00:14]} 8. Na4 {[%emt 0:02:41]} Bb6 {[%emt 0:01:43]} 9. Nxb6 {[%emt 0:00:27]} axb6 {[%emt 0:00:07]} 10. Be3 {[%emt 0:00:44]} Be6 {[%emt 0:00:33]} 11. Bb5 {[%emt 0:02:33]} Ne7 {[%emt 0:02:41]} 12. c4 {[%emt 0:02:35]} Nh7 {[%emt 0:13:20]} 13. Ba4 {[%emt 0:26:34]} f5 {[%emt 0:01:32]} 14. exf5 {[%emt 0:03:29]} Nxf5 {[%emt 0:08:00]} 15. Bb3 {[%emt 0:14:17]} c5 {[%emt 0:05:20]} 16. Qe2 {[%emt 0:00:25]} Qd7 {[%emt 0:25:04]} 17. Kh2 {[%emt 0:02:25]} Rae8 {[%emt 0:00:28]} 18. Rfd1 {[%emt 0:01:20]} Nd4 {[%emt 0:01:54]} 19. Bxd4 {[%emt 0:01:03]} exd4 {[%emt 0:00:17]} 20. Nd2 {[%emt 0:04:31]} Bxh3 {[%emt 0:01:34]} 21. Ne4 {[%emt 0:35:24]} Bf5 {[%emt 0:01:06]} 22. f3 {[%emt 0:00:00]} Ng5 {[%emt 0:03:45]} 23. a4 {[%emt 0:00:00]} Qc7 {[%emt 0:01:10]} 24. Kg1 {[%emt 0:00:00]} Re6 {[%emt 0:03:37]} 25. Bc2 {[%emt 0:00:00]} Rg6 {[%emt 0:03:00]} 26. Kf2 {[%emt 0:00:00]} d5 {[%emt 0:09:28]} 27. cxd5 {[%emt 0:00:00]} Nh3+ {[%emt 0:02:06]} 28. Ke1 {[%emt 0:00:00]} Nf4 {[%emt 0:00:50]} 29. d6 {[%emt 0:00:00]} Qf7 {[%emt 0:00:18]} 30. Qd2 {[%emt 0:00:00]} Nxg2+ {[%emt 0:00:11]} 31. Kf2 {[%emt 0:00:00]} Bxe4 {[%emt 0:00:44]} 0-1